[Event "French Top 16-A 2024"]
[Site "Chartres"]
[Date "2024.06.01"]
[Round "3.16"]
[White "Malassagne, Isabelle"]
[Black "Zienkiewicz, Jan"]
[Result "1/2-1/2"]
[ECO "B30"]
[WhiteElo "2090"]
[BlackElo "2164"]
[Annotator "RC"]
[PlyCount "206"]
[EventDate "2024.06.01"]
[EventType "team-tourn"]
[EventCountry "FRA"]
[SourceTitle "playchess.com"]
[Source "ChessBase"]
[SourceQuality "1"]
[TimeControl "40/5400+30:1800+30"]

1. e4 {[%emt 0:00:03]} c5 {[%emt 0:00:18]} 2. Nf3 {[%emt 0:00:11]} Nc6 {[%emt 0:00:07]} 3. Bb5 {[%emt 0:00:04]} e6 {[%emt 0:00:05]} 4. O-O {[%emt 0:00:58]} Nge7 {[%emt 0:00:08]} 5. d4 {[%emt 0:00:11]} cxd4 {[%emt 0:00:11]} 6. Nxd4 {[%emt 0:00:02]} Ng6 {[%emt 0:00:20]} 7. Be3 {[%emt 0:12:22]} a6 {[%emt 0:01:20]} 8. Be2 {[%emt 0:02:02]} Qc7 {[%emt 0:01:30]} 9. Nxc6 {[%emt 0:08:19]} Qxc6 {[%emt 0:03:53]} 10. Qd3 {[%emt 0:11:09]} b5 {[%emt 0:12:53]} 11. a4 {[%emt 0:07:38]} b4 {[%emt 0:02:48]} 12. Nd2 {[%emt 0:05:56]} Bb7 {[%emt 0:06:38]} 13. Qc4 {[%emt 0:03:20]} Be7 {[%emt 0:10:19]} 14. Qxc6 {[%emt 0:02:37]} Bxc6 {[%emt 0:00:20]} 15. f4 {[%emt 0:03:37]} O-O {[%emt 0:08:59]} 16. Bd3 {[%emt 0:04:48]} e5 {[%emt 0:08:00]} 17. f5 {[%emt 0:00:45]} Nf4 {[%emt 0:00:07]} 18. Nc4 {[%emt 0:07:36]} Nxd3 {[%emt 0:08:28]} 19. cxd3 {[%emt 0:00:02]} f6 {[%emt 0:00:48]} 20. Rfc1 {[%emt 0:06:17]} Kf7 {[%emt 0:07:40]} 21. b3 {[%emt 0:03:25]} Rab8 {[%emt 0:04:45]} 22. Ra2 {[%emt 0:03:50]} Bb7 {[%emt 0:07:10]} 23. Nb6 {[%emt 0:00:29]} Rfd8 {[%emt 0:00:11]} 24. Rac2 {[%emt 0:07:51]} Ke8 {[%emt 0:02:51]} 25. Rc7 {[%emt 0:02:17]} Bd6 {[%emt 0:02:59]} 26. R7c2 {[%emt 0:01:19]} Bc6 {[%emt 0:02:55]} 27. Nc4 {[%emt 0:00:31]} Bc7 {[%emt 0:00:18]} 28. g4 {[%emt 0:01:59]} Kf7 {[%emt 0:02:23]} 29. Nd2 {[%emt 0:00:56]} Rdc8 {[%emt 0:02:01]} 30. Kf2 {[%emt 0:00:37]} Bd8 {[%emt 0:02:53]} 31. Nc4 {[%emt 0:00:25]} Bc7 {[%emt 0:00:35]} 32. Bc5 {[%emt 0:01:24]} Rd8 {[%emt 0:01:09]} 33. Nd6+ {[%emt 0:01:36]} Bxd6 {[%emt 0:01:07]} 34. Bxd6 {[%emt 0:00:01]} Rb7 {[%emt 0:00:12]} 35. Ke3 {[%emt 0:01:03]} a5 {[%emt 0:00:21]} 36. h4 {[%emt 0:00:14]} Ra8 {[%emt 0:01:08]} 37. g5 {[%emt 0:00:20]} Ra6 {[%emt 0:00:29]} 38. Bc5 {[%emt 0:01:42]} Bxa4 {[%emt 0:00:20]} 39. bxa4 {[%emt 0:00:23]} d6 {[%emt 0:00:01]} 40. Bxb4 {[%emt 0:00:25]} axb4 {[%emt 0:00:17]} 41. Rc7+ {[%emt 0:30:09]} Rxc7 {[%emt 0:30:02]} 42. Rxc7+ {[%emt 0:00:05]} Kf8 {[%emt 0:00:00]} 43. gxf6 {[%emt 0:00:00]} gxf6 {[%emt 0:00:00]} 44. Rxh7 {[%emt 0:00:00]} Rxa4 {[%emt 0:00:00]} 45. Rb7 {[%emt 0:00:00]} Ra1 {[%emt 0:00:00]} 46. Rxb4 {[%emt 0:00:00]} Rh1 {[%emt 0:00:00]} 47. Rb6 {[%emt 0:00:00]} Rxh4 {[%emt 0:00:00]} 48. Rxd6 {[%emt 0:00:00]} Kg7 {[%emt 0:00:00]} 49. Kd2 {[%emt 0:00:00]} Rh8 {[%emt 0:00:00]} 50. Rd7+ {[%emt 0:00:00]} Kh6 {[%emt 0:00:00]} 51. Ke3 {[%emt 0:00:00]} Ra8 {[%emt 0:00:00]} 52. Rf7 {[%emt 0:00:00]} Ra6 {[%emt 0:00:00]} 53. Kf3 {[%emt 0:00:00]} Rb6 {[%emt 0:00:00]} 54. Re7 {[%emt 0:00:00]} Rb3 {[%emt 0:00:00]} 55. Ke3 {[%emt 0:00:00]} Ra3 {[%emt 0:00:15]} 56. Re6 {[%emt 0:00:00]} Kg7 {[%emt 0:01:19]} 57. Rb6 {[%emt 0:00:00]} Rc3 {[%emt 0:00:38]} 58. Rd6 {[%emt 0:00:07]} Rc2 {[%emt 0:00:42]} 59. Kf3 {[%emt 0:00:41]} Rb2 {[%emt 0:01:03]} 60. Ra6 {[%emt 0:01:09]} Rc2 {[%emt 0:00:18]} 61. Ke3 {[%emt 0:00:04]} Rb2 {[%emt 0:00:10]} 62. Ra3 {[%emt 0:00:04]} Rc2 {[%emt 0:00:18]} 63. Ra1 {[%emt 0:00:51]} Rb2 {[%emt 0:00:19]} 64. Rd1 {[%emt 0:00:02]} Kf7 {[%emt 0:01:54]} 65. Rd2 {[%emt 0:01:00]} Rb3 {[%emt 0:01:01]} 66. Ra2 {[%emt 0:00:06]} Rb7 {[%emt 0:00:16]} 67. Kd2 {[%emt 0:00:02]} Rc7 {[%emt 0:00:30]} 68. Rc2 {[%emt 0:00:27]} Ra7 {[%emt 0:00:01]} 69. Rc6 {[%emt 0:00:41]} Ra3 {[%emt 0:00:23]} 70. Kc2 {[%emt 0:00:02]} Ke7 {[%emt 0:00:14]} 71. Rc3 {[%emt 0:00:15]} Ra7 {[%emt 0:03:55]} 72. Kb2 {[%emt 0:00:02]} Rb7+ {[%emt 0:00:07]} 73. Rb3 {[%emt 0:00:07]} Rd7 {[%emt 0:02:36]} 74. Kc3 {[%emt 0:03:04]} Rc7+ {[%emt 0:00:29]} 75. Kd2 {[%emt 0:01:13]} Ra7 {[%emt 0:00:28]} 76. Ke3 {[%emt 0:00:02]} Rd7 {[%emt 0:00:14]} 77. Rb4 {[%emt 0:00:08]} Ra7 {[%emt 0:00:05]} 78. Rb8 {[%emt 0:02:32]} Ra3 {[%emt 0:00:56]} 79. Rb7+ {[%emt 0:00:05]} Ke8 {[%emt 0:00:07]} 80. Kd2 {[%emt 0:00:27]} Kf8 {[%emt 0:00:11]} 81. Kc2 {[%emt 0:00:22]} Ke8 {[%emt 0:00:08]} 82. Rb3 {[%emt 0:04:55]} Ra7 {[%emt 0:00:09]} 83. Kc3 {[%emt 0:00:08]} Rc7+ {[%emt 0:00:53]} 84. Kd2 {[%emt 0:00:01]} Ke7 {[%emt 0:00:11]} 85. Ke3 {[%emt 0:00:04]} Rd7 {[%emt 0:00:13]} 86. Rb1 {[%emt 0:00:30]} Kf7 {[%emt 0:01:14]} 87. Rb5 {[%emt 0:00:01]} Ke7 {[%emt 0:00:22]} 88. Ra5 {[%emt 0:03:15]} Rd6 {[%emt 0:00:33]} 89. Ra7+ {[%emt 0:00:09]} Ke8 {[%emt 0:00:41]} 90. Ra4 {[%emt 0:00:15]} Ke7 {[%emt 0:00:03]} 91. d4 {[%emt 0:00:41]} exd4+ {[%emt 0:00:24]} 92. Rxd4 {[%emt 0:00:02]} Rxd4 {[%emt 0:01:47]} 93. Kxd4 {[%emt 0:00:02]} Kd6 {[%emt 0:00:13]} 94. Kd3 {[%emt 0:00:16]} Kd7 {[%emt 0:00:06]} 95. Ke3 {[%emt 0:00:44]} Ke7 {[%emt 0:00:05]} 96. Kd2 {[%emt 0:01:42]} Kd8 {[%emt 0:00:35]} 97. Kc3 {[%emt 0:00:23]} Kc7 {[%emt 0:00:12]} 98. Kb4 {[%emt 0:01:05]} Kd6 {[%emt 0:00:21]} 99. Kc4 {[%emt 0:00:10]} Kc6 {[%emt 0:00:06]} 100. Kd3 {[%emt 0:00:19]} Kd7 {[%emt 0:04:46]} 101. Kd2 {[%emt 0:03:47]} Kd8 102. Kc2 {[%emt 0:00:30]} Kc8 {[%emt 0:01:00]} 103. Kb3 {[%emt 0:00:30]} Kd7 {[%emt 0:00:30]} 1/2-1/2

[Event "French Top 16-A 2024"]
[Site "Chartres"]
[Date "2024.06.02"]
[Round "4.1"]
[White "Erigaisi Arjun"]
[Black "Travadon, Loic"]
[Result "1-0"]
[ECO "A50"]
[WhiteElo "2762"]
[BlackElo "2446"]
[Annotator "TA"]
[PlyCount "27"]
[EventDate "2024.06.01"]
[EventType "team-tourn"]
[EventCountry "FRA"]
[SourceTitle "playchess.com"]
[Source "ChessBase"]
[SourceQuality "1"]
[TimeControl "40/5400+30:1800+30"]

{[%evp 9,27,1,26,26,31,0,10,-5,30,7,62,83,90,52,216,194,191,195,392,371]} 1. c4 {[%emt 0:03:29]} b6 {[%emt 0:00:12]} 2. d4 {[%emt 0:00:18]} Bb7 {[%emt 0:00:08]} 3. Nc3 {[%emt 0:00:16]} e6 {[%emt 0:00:06]} 4. a3 {[%emt 0:00:05]} Nf6 {[%emt 0:00:12]} 5. d5 {[%emt 0:01:07]} Bc5 {[%emt 0:07:15]} 6. Nf3 {[%emt 0:00:54]} O-O {[%emt 0:00:44]} 7. Bg5 {[%emt 0:01:25]} Be7 {[%emt 0:02:50][%cal Of6d5]} 8. h4 {[%emt 0:03:50] The position is equal.} d6 {[%emt 0:03:58]} 9. e3 {[%emt 0:02:38]} c6 {[%emt 0:01:06]} ({Better is} 9... h6 $11) 10. dxe6 $14 {[%emt 0:02:12]} fxe6 {[%emt 0:00:06]} 11. Bd3 {[%emt 0:07:34] White has more active pieces. The black rooks are passive.} c5 $2 {[%emt 0:13:54] [#]} ({Black should try} 11... Nbd7 $14) 12. Bxf6 $1 $18 {[%emt 0:04:27]} Bxf6 {[%emt 0:01:59] [#]} 13. Ng5 $1 {[%emt 0:01:44][%mdl 512]} Bxg5 $2 {[%emt 0:02:57]} (13... h6) (13... Bxc3+ 14. bxc3) 14. Bxh7+ {[%emt 0:02:32] Black got outplayed after the opening.   Weighted Error Value: White=0.10 (very precise) /Black=0.79.  Loses game:     	---       	Black=1      Mistake:       	---       	Black=2      Inaccurate:     	White=2     	Black=1      OK:         	White=3     	Black=1      Best:        	White=1     	---} 1-0

[Event "French Top 16-A 2024"]
[Site "Chartres"]
[Date "2024.06.02"]
[Round "4.1"]
[White "Harikrishna, Pentala"]
[Black "Lupulescu, Constantin"]
[Result "1-0"]
[ECO "A20"]
[WhiteElo "2700"]
[BlackElo "2588"]
[Annotator "TA"]
[PlyCount "52"]
[EventDate "2024.06.01"]
[EventType "team-tourn"]
[EventCountry "FRA"]
[SourceTitle "playchess.com"]
[Source "ChessBase"]
[SourceQuality "1"]
[TimeControl "40/5400+30:1800+30"]

{[%evp 9,52,0,6,0,0,0,0,0,0,0,0,0,-20,-16,0,0,0,0,0,0,108,111,177,169,223,145,279,284,287,268,279,283,262,268,254,251,516,471,497,532,543,551,583,570,29989]} 1. c4 {[%emt 0:00:12]} e5 {[%emt 0:00:06][%cal Be7e5,Be5e4][%mdl 32]} 2. g3 {[%emt 0:00:51]} c6 {[%emt 0:00:09]} 3. d4 {[%emt 0:01:04]} e4 {[%emt 0:00:15]} 4. a3 {[%emt 0:01:28]} d5 {[%emt 0:04:37]} 5. Nc3 {[%emt 0:00:28]} Be7 {[%emt 0:09:46]} 6. Bg2 {[%emt 0:07:45]} Nf6 {[%emt 0:05:07]} 7. f3 {[%emt 0:01:27]} exf3 {[%emt 0:01:58]} 8. Nxf3 {[%emt 0:00:07] The position is equal.} dxc4 {[%emt 0:03:01]} 9. O-O {[%emt 0:00:39]} O-O {[%emt 0:00:20]} 10. e4 {[%emt 0:01:22]} b5 {[%emt 0:10:41]} 11. Kh1 {[%emt 0:02:25]} Na6 {[%emt 0:08:04]} 12. Qc2 {[%emt 0:14:49]} Nc7 {[%emt 0:03:18]} 13. Bf4 {[%emt 0:05:43]} Bb7 {[%emt 0:10:20]} 14. Rad1 {[%emt 0:03:21]} Qc8 {[%emt 0:02:24]} (14... a6 $11 {remains equal.}) 15. Nh4 $16 {[%emt 0:02:44][%mdl 1024] White has strong compensation. White is more active.} Ne6 {[%emt 0:06:09]} (15... Nfe8 $16) 16. Nf5 $18 {[%emt 0:01:27]} Qd7 {[%emt 0:05:45]} (16... Qe8 $142 17. Nd6 Bxd6 18. Bxd6 Qd7) 17. Be3 {[%emt 0:14:50] d5 is the strong threat.} Rfc8 {[%emt 0:02:48]} (17... Ng4 $16 {keeps fighting.}) 18. d5 {[%emt 0:10:10]} cxd5 {[%emt 0:00:45]} 19. e5 {[%emt 0:00:34]} (19. Nxd5 Nxd5 20. exd5 Nc5 $11) 19... Ng4 {[%emt 0:04:18] White must now prevent ...Nxe3.} 20. Nxd5 {[%emt 0:00:12]} Bxd5 {[%emt 0:00:12]} 21. Rxd5 {[%emt 0:10:07]} Qe8 {[%emt 0:07:22]} 22. Bc1 {[%emt 0:01:17] A strong pair of Bishops.} Nc7 $2 {[%emt 0:04:33] [#]} (22... Rd8 {was called for.} 23. h3 Rxd5) 23. Qe2 $1 {[%emt 0:02:55] White is clearly winning.} h5 {[%emt 0:02:13] [#]} ({Don't blunder} 23... Nxd5 $2 24. Qxg4 g6 25. Bxd5) 24. h3 $1 {[%emt 0:01:47]} Nxd5 {[%emt 0:02:09]} 25. Bxd5 {[%emt 0:00:37]} ({Less strong is} 25. hxg4 Rd8 $16) 25... Rc5 {[%emt 0:00:24]} 26. e6 {[%emt 0:04:07]} Bf8 {[%emt 0:06:46] Weighted Error Value: White=0.06 (flawless) /Black=0.42.  Mistake:       	---       	Black=5      Inaccurate:     	White=1     	Black=1      OK:         	White=9     	Black=10     Best:        	White=4     	---} 1-0

[Event "French Top 16-A 2024"]
[Site "Chartres"]
[Date "2024.06.02"]
[Round "4.2"]
[White "Demuth, Adrien"]
[Black "Esipenko, Andrey"]
[Result "1/2-1/2"]
[ECO "A38"]
[WhiteElo "2506"]
[BlackElo "2704"]
[Annotator "TA"]
[PlyCount "111"]
[EventDate "2024.06.01"]
[EventType "team-tourn"]
[EventCountry "FRA"]
[SourceTitle "playchess.com"]
[Source "ChessBase"]
[SourceQuality "1"]
[TimeControl "40/5400+30:1800+30"]

{[%evp 19,111,0,0,0,0,0,0,0,0,0,0,0,0,0,0,0,0,-6,-7,-20,-11,-14,-23,-19,-18,-18,-11,-19,-15,-25,-22,-30,-19,-18,-17,-24,-12,-21,-14,-22,-2,-15,-6,-6,0,0,0,0,0,0,0,3,8,0,0,0,0,0,0,-11,-11,-14,-14,-55,0,0,0,-9,-8,-12,0,0,0,0,0,-5,-5,-5,-5,-5,-6,-20,0,0,0,0,0,0,0,0,0,0,0,0]} 1. c4 {[%emt 0:00:03]} c5 {[%emt 0:00:43]} 2. Nf3 {[%emt 0:00:52]} Nc6 {[%emt 0:00:13]} 3. Nc3 {[%emt 0:02:15]} Nf6 {[%emt 0:00:16]} 4. g3 {[%emt 0:05:50]} d5 {[%emt 0:02:20]} 5. cxd5 {[%emt 0:00:07]} Nxd5 {[%emt 0:00:04]} 6. Bg2 {[%emt 0:00:05]} g6 {[%emt 0:02:49]} 7. O-O {[%emt 0:04:11]} Bg7 {[%emt 0:00:08]} 8. d3 {[%emt 0:02:33]} O-O {[%emt 0:06:20]} 9. Nxd5 {[%emt 0:15:18]} Qxd5 {[%emt 0:00:06]} 10. Be3 {[%emt 0:00:05]} Bd7 {[%emt 0:26:07][%cal Od5d6]} 11. Nd2 {[%emt 0:27:34]} Qh5 {[%emt 0:04:33]} 12. Bf3 {[%emt 0:01:58]} Bg4 {[%emt 0:00:15]} 13. Bxg4 {[%emt 0:07:50]} Qxg4 {[%emt 0:00:44]} 14. Bxc5 {[%emt 0:00:23]} Bxb2 {[%emt 0:00:19]} 15. Rb1 {[%emt 0:00:27]} Bd4 {[%emt 0:00:14]} 16. Ba3 {[%emt 0:04:12]} Qd7 {[%emt 0:02:53]} 17. Nb3 {[%emt 0:05:44]} Bb6 {[%emt 0:08:01]} 18. Bb2 {[%emt 0:07:08]} Rfd8 {[%emt 0:05:37]} 19. Rc1 {[%emt 0:00:13]} Qd5 {[%emt 0:00:51]} 20. Rc4 {[%emt 0:04:11] [#]} Qxc4 $1 {[%emt 0:06:00]} 21. dxc4 {[%emt 0:00:04]} Rxd1 {[%emt 0:00:05]} 22. Rxd1 {[%emt 0:00:03]} Kf8 {[%emt 0:00:33]} 23. e3 {[%emt 0:05:05]} Rc8 {[%emt 0:01:06]} 24. a3 Ke8 {[%emt 0:00:16]} 25. Kf1 Na5 {[%emt 0:00:30]} 26. Nxa5 {[%emt 0:01:30]} Bxa5 $11 {[%emt 0:00:30][%mdl 4096] Endgame. KRB-KRB} 27. Rc1 {[%emt 0:00:30]} Kd7 {[%emt 0:00:30]} 28. Ke2 {[%emt 0:00:30]} Rc6 {[%emt 0:00:30]} 29. Rd1+ {[%emt 0:00:30]} Ke6 {[%emt 0:00:30]} 30. Rd5 {[%emt 0:00:30]} Bc7 {[%emt 0:00:30]} 31. Kd3 {[%emt 0:00:30]} Bd6 {[%emt 0:00:30]} 32. Rb5 {[%emt 0:00:30]} b6 {[%emt 0:00:30]} 33. a4 {[%emt 0:05:21]} Bc5 {[%emt 0:21:02]} 34. Bd4 {[%emt 0:00:33]} a6 {[%emt 0:00:31]} 35. Rb1 {[%emt 0:00:09]} Kd6 $1 {[%emt 0:00:09]} 36. Kc3 {[%emt 0:00:45]} e5 {[%emt 0:02:08]} 37. Bxc5+ {[%emt 0:00:03]} Kxc5 {[%emt 0:00:01] KR-KR} 38. a5 {[%emt 0:01:20]} bxa5 {[%emt 0:00:16]} 39. Rb7 {[%emt 0:00:34]} Rf6 {[%emt 0:00:12]} 40. f4 {[%emt 0:00:24]} exf4 {[%emt 0:01:04]} 41. exf4 {[%emt 0:17:45]} a4 {[%emt 0:10:20]} (41... h5 $15) 42. Rc7+ {[%emt 0:05:17] The position is equal.} Kb6 {[%emt 0:00:41]} 43. Rd7 {[%emt 0:00:47]} a5 {[%emt 0:01:56]} 44. h4 {[%emt 0:02:50]} h5 {[%emt 0:02:15]} 45. Re7 {[%emt 0:03:44]} Rf5 {[%emt 0:11:07]} 46. Rd7 {[%emt 0:00:29]} Rf6 {[%emt 0:01:47]} 47. Re7 {[%emt 0:00:01]} Ka6 {[%emt 0:01:38] aiming for ...Rb6.} 48. Kb2 $1 {[%emt 0:01:22]} Rb6+ {[%emt 0:01:13]} 49. Ka2 {[%emt 0:01:36]} Rb7 {[%emt 0:00:46]} 50. Re5 {[%emt 0:00:38]} Rc7 {[%emt 0:06:06]} 51. f5 $1 {[%emt 0:00:21]} Kb7 {[%emt 0:03:34]} 52. fxg6 {[%emt 0:00:16]} fxg6 {[%emt 0:00:01]} (52... Rxc4 $2 {is the wrong capture.} 53. g7 (53. Rxh5 fxg6 54. Rg5 Rc6 $11) (53. gxf7 Rc2+ 54. Ka3 Rf2 $18) 53... Rc8 54. Rxh5 $18 (54. Rxa5 Rg8 $11)) 53. Rg5 {[%emt 0:00:32]} Rc6 {[%emt 0:00:01]} 54. g4 {[%emt 0:00:17]} Rxc4 {[%emt 0:00:42]} 55. gxh5 {[%emt 0:00:05]} gxh5 {[%emt 0:00:06]} 56. Rxh5 {[%emt 0:00:03] An interesting draw.   Weighted Error Value: White=0.03 (flawless) /Black=0.04 (flawless) .  Mistake:       	---       	Black=1      Inaccurate:     	White=1     	---        OK:         	White=22    	Black=18     Strong:       	White=2     	Black=1} 1/2-1/2

[Event "French Top 16-A 2024"]
[Site "Chartres"]
[Date "2024.06.02"]
[Round "4.2"]
[White "Malassagne, Raphael"]
[Black "Ganguly, Surya Shekhar"]
[Result "1-0"]
[ECO "B13"]
[WhiteElo "2260"]
[BlackElo "2576"]
[Annotator "RC"]
[PlyCount "89"]
[EventDate "2024.06.01"]
[EventType "team-tourn"]
[EventCountry "FRA"]
[SourceTitle "playchess.com"]
[Source "ChessBase"]
[SourceQuality "1"]
[TimeControl "40/5400+30:1800+30"]

1. d4 {[%emt 0:00:03]} d5 {[%emt 0:00:34]} 2. Bf4 {[%emt 0:00:33]} Nf6 {[%emt 0:01:18]} 3. e3 {[%emt 0:00:14]} c5 {[%emt 0:00:27]} 4. Nc3 {[%emt 0:00:44]} cxd4 {[%emt 0:00:43]} 5. exd4 {[%emt 0:00:14]} a6 {[%emt 0:00:17]} 6. Nf3 {[%emt 0:00:26]} Nc6 {[%emt 0:00:29]} 7. Ne5 {[%emt 0:00:16]} Bd7 {[%emt 0:00:27]} 8. g3 {[%emt 0:00:26]} e6 {[%emt 0:00:31]} 9. Bg2 {[%emt 0:00:23]} Qb6 {[%emt 0:01:29]} 10. O-O {[%emt 0:01:04]} Qxb2 {[%emt 0:12:33]} 11. Nxd5 {[%emt 0:07:13]} exd5 {[%emt 0:02:31]} 12. Nxd7 {[%emt 0:07:06]} Nxd7 {[%emt 0:02:33]} 13. c4 {[%emt 0:02:43]} Qxd4 {[%emt 0:15:06]} 14. Re1+ {[%emt 0:16:48]} Kd8 {[%emt 0:00:35]} 15. Qh5 {[%emt 0:15:45]} Bc5 {[%emt 0:04:23]} 16. Be3 {[%emt 0:09:27]} g6 {[%emt 0:07:32]} 17. Bxd4 {[%emt 0:07:36]} gxh5 {[%emt 0:00:10]} 18. Bxh8 {[%emt 0:00:02]} d4 {[%emt 0:00:41]} 19. Rad1 {[%emt 0:03:55]} Kc7 {[%emt 0:01:09]} 20. Bxc6 {[%emt 0:01:41]} Rxh8 {[%emt 0:00:05]} 21. Bxd7 {[%emt 0:00:26]} Kxd7 {[%emt 0:00:05]} 22. Re5 {[%emt 0:00:06]} b6 {[%emt 0:00:37]} 23. Rxh5 {[%emt 0:00:18]} Ke6 {[%emt 0:00:19]} 24. Kf1 {[%emt 0:01:34]} Kf6 {[%emt 0:00:26]} 25. Rd5 {[%emt 0:02:55]} a5 {[%emt 0:00:36]} 26. a4 {[%emt 0:00:45]} Rc8 {[%emt 0:00:32]} 27. Ke2 {[%emt 0:01:07]} Re8+ {[%emt 0:00:53]} 28. Kd3 {[%emt 0:00:05]} h6 {[%emt 0:00:32]} 29. h4 {[%emt 0:00:29]} Re6 {[%emt 0:00:21]} 30. h5 {[%emt 0:02:52]} Re8 {[%emt 0:01:17]} 31. Rg1 {[%emt 0:00:55]} Kg7 {[%emt 0:07:07]} 32. Rf5 {[%emt 0:02:11]} Re6 {[%emt 0:00:37]} 33. g4 {[%emt 0:01:09]} f6 {[%emt 0:00:06]} 34. Rf4 {[%emt 0:01:00]} Re8 {[%emt 0:01:36]} 35. Re4 {[%emt 0:00:33]} Rg8 {[%emt 0:00:29]} 36. f3 {[%emt 0:03:06]} Kf7 {[%emt 0:00:15]} 37. Rg2 {[%emt 0:00:37]} Rc8 {[%emt 0:00:47]} 38. Rge2 {[%emt 0:00:05]} Rg8 {[%emt 0:00:21]} 39. Rf4 {[%emt 0:00:48]} Rc8 {[%emt 0:03:22]} 40. Rf5 {[%emt 0:00:06]} Rc7 {[%emt 0:00:25]} 41. Re4 {[%emt 0:37:53]} Rc8 {[%emt 0:32:19]} 42. Rd5 {[%emt 0:00:59]} Rc7 {[%emt 0:34:55]} 43. Rd8 {[%emt 0:02:00]} b5 {[%emt 0:00:00]} 44. cxb5 {[%emt 0:03:00]} Bb6 {[%emt 0:00:00]} 45. Rexd4 {[%emt 0:00:00]} 1-0

[Event "French Top 16-A 2024"]
[Site "Chartres"]
[Date "2024.06.02"]
[Round "4.3"]
[White "Vachier-Lagrave, Maxime"]
[Black "Karthik Venkataraman"]
[Result "1/2-1/2"]
[ECO "B92"]
[WhiteElo "2732"]
[BlackElo "2606"]
[Annotator "TA"]
[PlyCount "44"]
[EventDate "2024.06.01"]
[EventType "team-tourn"]
[EventCountry "FRA"]
[SourceTitle "playchess.com"]
[Source "ChessBase"]
[SourceQuality "1"]
[TimeControl "40/5400+30:1800+30"]

{[%evp 17,44,6,25,15,0,16,0,0,4,0,0,1,8,0,23,23,6,7,17,0,31,22,54,0,0,0,34,0,0]} 1. e4 {[%emt 0:00:05]} c5 {[%emt 0:00:06]} 2. Nf3 {[%emt 0:00:05]} d6 {[%emt 0:00:06]} 3. d4 {[%emt 0:00:03]} cxd4 {[%emt 0:00:04]} 4. Nxd4 {[%emt 0:00:03]} Nf6 {[%emt 0:00:05]} 5. Nc3 {[%emt 0:00:02]} a6 {[%emt 0:00:05]} 6. Be2 {[%emt 0:00:03]} e5 {[%emt 0:00:15]} 7. Nb3 {[%emt 0:00:04]} Be7 {[%emt 0:00:04]} 8. Be3 {[%emt 0:00:13]} Be6 {[%emt 0:00:06]} 9. O-O {[%emt 0:00:04]} O-O {[%emt 0:00:07]} 10. Re1 {[%emt 0:00:12]} Qc7 {[%emt 0:01:04]} 11. Bf3 {[%emt 0:15:40]} Rc8 {[%emt 0:00:19]} 12. a4 {[%emt 0:01:17][%cal Ba2a4,Ba4a5][%mdl 32]} Nbd7 {[%emt 0:02:30][%cal Bb8d7,Bd7b6,Bb6c4][%mdl 32]} 13. a5 {[%emt 0:02:21]} h6 {[%emt 0:09:13]} 14. h3 {[%emt 0:03:38]} Rab8 {[%emt 0:12:42]} 15. Nd2 {[%emt 0:04:13]} Bd8 {[%emt 0:10:06]} 16. Nf1 {[%emt 0:09:52]} b5 {[%emt 0:05:40]} 17. axb6 {[%emt 0:00:11]} Nxb6 {[%emt 0:00:06]} 18. Bc1 {[%emt 0:00:04][%cal Of3e2]} Nc4 {[%emt 0:04:46]} 19. b3 {[%emt 0:00:52]} Na5 {[%emt 0:00:10]} 20. Bb2 {[%emt 0:03:14]} Nc4 {[%emt 0:01:15]} 21. Bc1 {[%emt 0:00:04]} Na5 {[%emt 0:00:03]} 22. Bb2 {[%emt 0:05:50]} Nc4 {[%emt 0:00:24] Weighted Error Value: White=0.09 (flawless) /Black=0.06 (flawless) .  Inaccurate:     	White=1     	Black=2      OK:         	White=5     	Black=7      Best:        	White=1     	Black=1} 1/2-1/2